[Event "EIWCC 2017"]
[Site "Riga"]
[Date "2017.04.13"]
[Round "3"]
[White "Arabidze, Meri"]
[Black "Sazonova, Anastasia"]
[Result "1-0"]
[ECO "D10"]
[WhiteElo "2373"]
[BlackElo "2143"]
[Annotator "NA"]
[PlyCount "181"]
[EventDate "2017.??.??"]
[EventType "swiss"]
[EventCountry "LAT"]
[SourceTitle "playchess.com"]
[Source "ChessBase"]
[SourceQuality "1"]
[TimeControl "40/5400+30:1800+30"]

1. d4 {[%emt 0:00:00]} d5 {[%emt 0:00:15]} 2. c4 {[%emt 0:00:00]} c6 {[%emt 0:00:19]} 3. cxd5 {[%emt 0:00:22]} cxd5 {[%emt 0:00:15]} 4. Nc3 {[%emt 0:00:02]} Nf6 {[%emt 0:00:47]} 5. Bf4 {[%emt 0:00:10]} Nc6 {[%emt 0:00:55]} 6. Nf3 {[%emt 0:01:12]} a6 {[%emt 0:01:02]} 7. Rc1 {[%emt 0:00:21]} Nh5 {[%emt 0:01:06] D13: Slav Defence: Exchange variation without ...Bf5} (7... e6 8. e3 Be7 9. h3 O-O 10. Bd3 Bd7 11. O-O Rc8 12. Ne5 Be8 13. Bg5 h6 14. Bh4 Nd7 15. Nxc6 Rxc6 16. Bxe7 Qxe7 17. Na4 Nf6 18. Qb3 Rxc1 19. Rxc1 Bxa4 20. Qxa4 Qd6 {½-½ (20) Artemiev,V (2663)-Vitiugov,N (2721) Sochi 2016}) 8. Bd2 {[%emt 0:00:15]} Nf6 {[%emt 0:00:16]} 9. h3 {[%emt 0:00:35]} e6 {[%emt 0:00:39]} 10. Bf4 {[%emt 0:03:03]} Bd6 {[%emt 0:01:05]} 11. Bxd6 {[%emt 0:00:36]} Qxd6 {[%emt 0:00:09]} 12. e3 {[%emt 0:00:07]} O-O {[%emt 0:00:34]} 13. Bd3 $146 {[%emt 0:00:14]} (13. Be2 e5 14. dxe5 Nxe5 15. Nd4 Rd8 16. O-O {1-0 (42) Roldan Marques,D (2021)-Alfaro Pinero,A (1747) Pamplona 2015}) 13... Bd7 {[%emt 0:01:56]} 14. O-O {[%emt 0:01:31]} Rac8 {[%emt 0:02:45]} 15. Qe2 {[%emt 0:05:06]} b5 {[%emt 0:20:33]} 16. a3 {[%emt 0:08:28]} Na5 {[%emt 0:20:41]} 17. Ne5 {[%emt 0:06:01]} Nc4 {[%emt 0:03:04]} 18. f4 {[%emt 0:01:20]} Ne8 {[%emt 0:03:10]} 19. a4 {[%emt 0:09:25]} b4 {[%emt 0:08:42]} (19... Nc7 $14) 20. Nb1 $11 {[%emt 0:02:03]} ({And not} 20. Nxd7 Qxd7 21. b3 (21. Ne4 Nxe3 22. Qxe3 Rxc1 23. Rxc1 dxe4 24. Bxe4 Qxa4 $11) 21... bxc3 $11) ({Better is} 20. Bxc4 $16 bxc3 21. Bxa6) 20... Bxa4 {[%emt 0:04:19]} 21. Nxc4 {[%emt 0:03:10]} dxc4 {[%emt 0:00:10]} 22. Bxc4 {[%emt 0:00:12]} Nc7 {[%emt 0:05:59]} 23. Nd2 {[%emt 0:01:26]} Bb5 {[%emt 0:01:55]} 24. Ne4 {[%emt 0:13:50]} Qb6 {[%emt 0:05:04]} 25. Bxb5 {[%emt 0:11:35]} Nxb5 {[%emt 0:04:12]} 26. Nc5 {[%emt 0:00:06]} Rfd8 {[%emt 0:01:46]} 27. Kh2 {[%emt 0:04:12]} h6 {[%emt 0:01:37]} 28. Ra1 {[%emt 0:00:51]} a5 {[%emt 0:01:15]} 29. Rfc1 {[%emt 0:10:36]} Ra8 {[%emt 0:02:24]} 30. Qf3 {[%emt 0:00:52]} Nd6 {[%emt 0:02:21]} 31. Ra4 {[%emt 0:07:01]} Qb5 {[%emt 0:01:13]} 32. Rca1 {[%emt 0:01:15]} Rdc8 {[%emt 0:01:05]} 33. Kg1 {[%emt 0:03:07]} Qb6 {[%emt 0:02:46]} 34. Qe2 {[%emt 0:01:38]} Ra7 {[%emt 0:01:49]} 35. Qd3 {[%emt 0:03:20]} Rd8 {[%emt 0:01:10]} 36. Nb3 {[%emt 0:01:23]} Rda8 {[%emt 0:00:24]} 37. Nc5 {[%emt 0:01:29]} Rd8 {[%emt 0:00:08]} 38. Nb3 {[%emt 0:00:18]} Rda8 {[%emt 0:00:05]} 39. Kf1 {[%emt 0:00:25]} Nb7 {[%emt 0:01:26]} 40. Rc1 {[%emt 0:00:00]} Nd6 {[%emt 0:00:32]} 41. Kg1 {[%emt 0:11:48]} Rc7 {[%emt 0:02:46]} 42. Rxc7 {[%emt 0:04:06]} Qxc7 {[%emt 0:00:07]} 43. Nc5 {[%emt 0:00:12]} Nb7 {[%emt 0:06:14]} 44. Qe4 {[%emt 0:01:28]} Ra7 {[%emt 0:00:25]} 45. Qe5 {[%emt 0:10:07]} Nd6 {[%emt 0:13:20]} 46. b3 {[%emt 0:00:19]} Nb5 {[%emt 0:03:47]} 47. Qxc7 {[%emt 0:01:42]} Nxc7 {[%emt 0:00:09]} 48. Kf2 {[%emt 0:00:26]} Nb5 {[%emt 0:01:22]} 49. Ke1 {[%emt 0:01:54]} Kf8 {[%emt 0:00:36]} 50. Kd2 {[%emt 0:00:50]} Ke7 {[%emt 0:01:20]} 51. Ra1 {[%emt 0:00:32]} Na3 {[%emt 0:03:52]} 52. Kd3 {[%emt 0:00:08]} Rc7 {[%emt 0:00:49]} 53. Rf1 {[%emt 0:01:44]} f5 {[%emt 0:01:36]} 54. g4 {[%emt 0:00:49]} g6 {[%emt 0:00:22]} 55. Rg1 {[%emt 0:01:33]} Kf6 {[%emt 0:00:35]} 56. h4 {[%emt 0:00:29]} fxg4 {[%emt 0:00:38]} 57. Rxg4 {[%emt 0:00:02]} Nb5 {[%emt 0:00:12]} 58. Rg1 {[%emt 0:01:16]} Nd6 {[%emt 0:00:41]} 59. Ra1 {[%emt 0:00:52]} Nb7 {[%emt 0:00:32]} 60. Nxb7 {[%emt 0:01:05]} Rxb7 {[%emt 0:00:02]} 61. Rxa5 {[%emt 0:00:01]} Rc7 {[%emt 0:00:15]} 62. Rc5 {[%emt 0:00:33]} Ra7 {[%emt 0:00:27]} 63. Rb5 {[%emt 0:00:23]} Ra2 {[%emt 0:00:23]} 64. h5 {[%emt 0:01:24]} g5 {[%emt 0:00:14]} 65. fxg5+ {[%emt 0:00:22]} hxg5 {[%emt 0:00:02]} 66. Rxb4 {[%emt 0:00:32]} Rh2 {[%emt 0:00:44]} 67. Rb8 {[%emt 0:00:38]} Rxh5 {[%emt 0:00:09]} 68. b4 {[%emt 0:00:32]} g4 {[%emt 0:00:32]} 69. Rg8 {[%emt 0:00:20]} Kf5 {[%emt 0:00:56]} 70. b5 {[%emt 0:00:28]} Rh1 {[%emt 0:00:51]} 71. Kc4 {[%emt 0:00:31]} Rc1+ {[%emt 0:01:31]} 72. Kb4 {[%emt 0:00:01]} Ke4 {[%emt 0:00:32]} 73. Rxg4+ {[%emt 0:00:23]} Kxe3 {[%emt 0:00:07]} 74. b6 {[%emt 0:01:07]} Kf3 {[%emt 0:00:22]} 75. Rh4 {[%emt 0:00:18]} Ke3 {[%emt 0:00:51]} 76. Kb5 {[%emt 0:00:15]} Rb1+ {[%emt 0:00:37]} 77. Kc6 {[%emt 0:00:01]} Rc1+ {[%emt 0:00:10]} 78. Kd7 {[%emt 0:00:17]} Rb1 {[%emt 0:00:15]} 79. Kc7 {[%emt 0:01:45]} Rc1+ {[%emt 0:00:08]} 80. Kb8 {[%emt 0:00:24]} Kd3 {[%emt 0:00:32]} 81. b7 {[%emt 0:00:30]} Rb1 {[%emt 0:01:28]} 82. Kc7 {[%emt 0:00:24]} Rc1+ {[%emt 0:00:07]} 83. Kd7 {[%emt 0:00:24]} Rb1 {[%emt 0:00:21]} 84. Kc7 {[%emt 0:00:51]} Rc1+ {[%emt 0:00:06]} 85. Kd6 {[%emt 0:00:21]} Rb1 {[%emt 0:00:07]} 86. Kxe6 {[%emt 0:00:06]} Kc4 {[%emt 0:00:53]} 87. d5+ {[%emt 0:01:02]} Kc5 {[%emt 0:00:01]} 88. Rh7 {[%emt 0:00:13]} Rb6+ {[%emt 0:00:54]} 89. Ke5 {[%emt 0:00:08]} Kb5 {[%emt 0:00:25]} 90. Rc7 {[%emt 0:01:13]} Ka6 {[%emt 0:01:08]} 91. Rc6 {[%emt 0:00:20]} 1-0

[Event "EIWCC 2017"]
[Site "Riga"]
[Date "2017.04.13"]
[Round "3"]
[White "Yildiz, Betul Cemre"]
[Black "Balaian, Alina"]
[Result "1/2-1/2"]
[ECO "C06"]
[WhiteElo "2367"]
[BlackElo "2229"]
[Annotator "NA"]
[PlyCount "101"]
[EventDate "2017.??.??"]
[EventType "swiss"]
[EventCountry "LAT"]
[SourceTitle "playchess.com"]
[Source "ChessBase"]
[SourceQuality "1"]
[TimeControl "40/5400+30:1800+30"]

1. e4 {[%emt 0:00:00]} e6 {[%emt 0:00:03]} 2. d4 {[%emt 0:00:00]} d5 {[%emt 0:00:04]} 3. Nd2 {[%emt 0:00:00]} Nf6 {[%emt 0:00:10]} 4. e5 {[%emt 0:00:00]} Nfd7 {[%emt 0:00:06]} 5. Bd3 {[%emt 0:00:00]} c5 {[%emt 0:00:05]} 6. c3 {[%emt 0:00:00]} Nc6 {[%emt 0:00:02]} 7. Ne2 {[%emt 0:00:01]} cxd4 {[%emt 0:00:07]} 8. cxd4 {[%emt 0:00:05]} f6 {[%emt 0:00:04]} 9. exf6 {[%emt 0:00:11]} Nxf6 {[%emt 0:00:04]} 10. Nf3 {[%emt 0:00:15]} Bd6 {[%emt 0:00:07]} 11. O-O {[%emt 0:00:07]} Qc7 {[%emt 0:00:05]} 12. h3 {[%emt 0:00:09]} O-O {[%emt 0:00:17]} 13. Be3 {[%emt 0:00:04]} Bd7 {[%emt 0:02:27]} 14. Re1 {[%emt 0:00:12]} Be8 {[%emt 0:15:29]} 15. Ng5 {[%emt 0:03:33]} Qd7 {[%emt 0:01:31]} 16. Nf4 {[%emt 0:13:00]} Bxf4 {[%emt 0:07:08]} 17. Bxf4 {[%emt 0:00:04]} Ne4 {[%emt 0:02:55]} 18. Be3 {[%emt 0:11:59]} Nxg5 {[%emt 0:03:31]} 19. Bxg5 {[%emt 0:00:02]} Qf7 {[%emt 0:10:16]} 20. Be3 {[%emt 0:03:07]} Bd7 {[%emt 0:07:46]} 21. Qb3 {[%emt 0:03:30]} b6 {[%emt 0:06:59]} 22. Rac1 {[%emt 0:05:05]} Rae8 {[%emt 0:02:02]} 23. f4 {[%emt 0:10:50]} Rc8 {[%emt 0:04:29]} 24. Ba6 {[%emt 0:03:48]} Rcd8 {[%emt 0:08:17]} 25. Qa3 {[%emt 0:02:05]} Qf6 {[%emt 0:01:27]} 26. Red1 {[%emt 0:01:37]} Rf7 {[%emt 0:03:12]} 27. Be2 {[%emt 0:07:44]} Qe7 {[%emt 0:04:44]} 28. Qxe7 {[%emt 0:04:14]} Nxe7 {[%emt 0:01:34]} 29. g3 {[%emt 0:09:15]} Nf5 {[%emt 0:00:42]} 30. Bf2 {[%emt 0:01:45]} Nd6 {[%emt 0:00:50]} 31. Bg4 {[%emt 0:01:04]} Kf8 {[%emt 0:05:57]} 32. Be1 {[%emt 0:00:45]} a5 {[%emt 0:00:42]} 33. b3 {[%emt 0:05:05]} Ke7 {[%emt 0:02:50]} 34. Be2 {[%emt 0:06:37]} Rff8 {[%emt 0:04:10]} 35. Bd3 {[%emt 0:00:23]} g6 {[%emt 0:00:53]} 36. g4 {[%emt 0:03:35]} Rc8 {[%emt 0:00:16]} 37. Bh4+ {[%emt 0:00:12]} Kf7 {[%emt 0:00:07]} 38. Ba6 {[%emt 0:07:09]} Rxc1 {[%emt 0:00:28]} 39. Rxc1 {[%emt 0:00:02]} Ra8 {[%emt 0:00:19]} 40. Bd3 {[%emt 0:00:00]} Rc8 {[%emt 0:01:11]} 41. Rxc8 {[%emt 0:02:53]} Nxc8 {[%emt 0:00:17]} 42. Bd8 {[%emt 0:00:18]} Ke8 {[%emt 0:05:20]} 43. Bc7 {[%emt 0:00:33]} a4 {[%emt 0:00:02]} 44. bxa4 {[%emt 0:10:55]} Bxa4 {[%emt 0:00:31]} 45. f5 {[%emt 0:02:01]} exf5 {[%emt 0:01:59]} 46. gxf5 {[%emt 0:00:04]} gxf5 {[%emt 0:00:25]} 47. Bxf5 {[%emt 0:01:23]} Bd7 {[%emt 0:00:03]} 48. Bxh7 {[%emt 0:01:59]} Bxh3 {[%emt 0:00:12]} 49. Kf2 {[%emt 0:00:48]} Kd7 {[%emt 0:00:39]} 50. Bf4 {[%emt 0:00:08]} Ne7 {[%emt 0:01:28]} 51. Bd3 {[%emt 0:00:14]} 1/2-1/2

[Event "EIWCC 2017"]
[Site "Riga"]
[Date "2017.04.13"]
[Round "3"]
[White "Babiy, Olga"]
[Black "Stetsko, Lanita"]
[Result "1-0"]
[ECO "C47"]
[WhiteElo "2359"]
[BlackElo "2226"]
[Annotator "NA"]
[PlyCount "65"]
[EventDate "2017.??.??"]
[EventType "swiss"]
[EventCountry "LAT"]
[SourceTitle "playchess.com"]
[Source "ChessBase"]
[SourceQuality "1"]
[TimeControl "40/5400+30:1800+30"]

1. e4 {[%emt 0:00:00]} e5 {[%emt 0:00:16]} 2. Nf3 {[%emt 0:00:00]} Nc6 {[%emt 0:00:06]} 3. Nc3 {[%emt 0:00:00]} Nf6 {[%emt 0:00:19]} 4. Be2 {[%emt 0:00:00]} d5 {[%emt 0:02:53]} 5. exd5 {[%emt 0:00:00]} Nxd5 {[%emt 0:00:05]} 6. O-O {[%emt 0:00:06]} Nxc3 {[%emt 0:01:07]} 7. bxc3 {[%emt 0:00:07]} e4 {[%emt 0:02:24]} 8. Ne1 {[%emt 0:00:10]} Bd6 {[%emt 0:15:39]} 9. f3 {[%emt 0:00:17]} Bf5 {[%emt 0:01:47]} 10. fxe4 {[%emt 0:03:06]} Bxe4 {[%emt 0:00:43]} 11. Nf3 {[%emt 0:00:34]} O-O {[%emt 0:04:27]} 12. d4 {[%emt 0:01:58]} h6 {[%emt 0:15:19]} 13. Bd3 {[%emt 0:00:49]} f5 {[%emt 0:03:37]} 14. Bc4+ {[%emt 0:17:54]} Kh8 {[%emt 0:03:02]} 15. Ng5 {[%emt 0:00:40]} Qe8 {[%emt 0:12:40]} 16. Nxe4 {[%emt 0:02:42]} Qxe4 {[%emt 0:01:02]} 17. Qd3 {[%emt 0:05:20]} Qh4 $16 {[%emt 0:07:50]} 18. g3 {[%emt 0:01:03]} Qh5 {[%emt 0:01:10]} 19. Bf4 {[%emt 0:15:45]} Rad8 {[%emt 0:08:06]} 20. Rae1 {[%emt 0:00:56]} Bxf4 {[%emt 0:07:09]} 21. Rxf4 {[%emt 0:01:15]} Rd6 {[%emt 0:00:17]} 22. Be6 {[%emt 0:07:49]} Ne7 {[%emt 0:03:09]} 23. Re5 {[%emt 0:04:30]} Qg5 {[%emt 0:01:33]} 24. h4 {[%emt 0:08:22]} Qf6 {[%emt 0:02:03]} 25. Bxf5 {[%emt 0:04:01]} g5 {[%emt 0:02:26]} 26. hxg5 {[%emt 0:01:32]} hxg5 {[%emt 0:00:01]} 27. Be6 {[%emt 0:05:10]} Qh6 {[%emt 0:02:43]} 28. Rxf8+ {[%emt 0:02:24]} Qxf8 {[%emt 0:00:02]} 29. Qe3 {[%emt 0:00:10]} Qf6 {[%emt 0:00:43]} 30. Bb3 {[%emt 0:01:38]} Nf5 {[%emt 0:00:46]} 31. Qf3 {[%emt 0:03:52]} Ng7 {[%emt 0:01:03]} 32. Qxb7 {[%emt 0:00:43]} Rd8 {[%emt 0:00:34]} 33. Qh1+ {[%emt 0:00:11]} 1-0

[Event "EIWCC 2017"]
[Site "Riga"]
[Date "2017.04.13"]
[Round "3"]
[White "Lazarne Vajda, Szidonia"]
[Black "Lickrastina, Agnese"]
[Result "1-0"]
[ECO "C79"]
[WhiteElo "2355"]
[BlackElo "2223"]
[Annotator "NA"]
[PlyCount "117"]
[EventDate "2017.??.??"]
[EventType "swiss"]
[EventCountry "LAT"]
[SourceTitle "playchess.com"]
[Source "ChessBase"]
[SourceQuality "1"]
[TimeControl "40/5400+30:1800+30"]

1. e4 {[%emt 0:00:11]} e5 {[%emt 0:00:15]} 2. Nf3 {[%emt 0:00:25]} Nc6 {[%emt 0:00:13]} 3. Bb5 {[%emt 0:00:39]} a6 {[%emt 0:01:37]} 4. Ba4 {[%emt 0:00:26]} Nf6 {[%emt 0:01:11]} 5. O-O {[%emt 0:00:57]} d6 {[%emt 0:01:43]} 6. c3 {[%emt 0:04:01]} Be7 {[%emt 0:03:55]} 7. d4 {[%emt 0:03:09]} b5 {[%emt 0:01:35]} 8. Bc2 {[%emt 0:05:45]} Bg4 {[%emt 0:02:46]} 9. Be3 {[%emt 0:01:36]} exd4 {[%emt 0:10:35]} 10. cxd4 {[%emt 0:01:03]} Nb4 {[%emt 0:04:33]} 11. Nbd2 {[%emt 0:07:21]} Nxc2 {[%emt 0:01:37]} 12. Qxc2 {[%emt 0:00:05]} O-O {[%emt 0:00:27]} 13. Rfc1 {[%emt 0:03:58]} Rc8 {[%emt 0:03:15]} 14. d5 $11 {[%emt 0:03:03]} Bd7 {[%emt 0:09:03]} 15. Nd4 {[%emt 0:00:32]} Ng4 {[%emt 0:00:28]} 16. Bf4 {[%emt 0:03:46]} Bg5 {[%emt 0:03:30]} 17. Bxg5 {[%emt 0:04:11]} Qxg5 {[%emt 0:00:12]} 18. N2f3 {[%emt 0:00:42]} Qf4 {[%emt 0:02:24]} 19. Ne2 {[%emt 0:04:14]} Qf6 {[%emt 0:02:34]} 20. h3 {[%emt 0:01:50]} Ne5 {[%emt 0:03:37]} 21. Nxe5 {[%emt 0:01:04]} dxe5 {[%emt 0:02:18]} 22. Qc5 {[%emt 0:02:19]} Qg6 {[%emt 0:06:32]} 23. Ng3 {[%emt 0:01:20]} h5 {[%emt 0:02:45]} 24. Qe7 {[%emt 0:00:42]} Qd6 {[%emt 0:03:58]} 25. Qg5 {[%emt 0:05:53]} f6 {[%emt 0:02:46]} 26. Qxh5 {[%emt 0:00:44]} Qb4 {[%emt 0:02:53]} 27. Rc2 {[%emt 0:02:24]} c6 {[%emt 0:01:35]} 28. Rac1 {[%emt 0:02:04]} cxd5 {[%emt 0:01:42]} 29. exd5 {[%emt 0:03:15]} Rxc2 {[%emt 0:02:15]} 30. Rxc2 {[%emt 0:00:05]} Qd4 {[%emt 0:03:12]} 31. Qf3 {[%emt 0:04:07]} Rc8 {[%emt 0:02:43]} 32. Rxc8+ {[%emt 0:08:49]} Bxc8 {[%emt 0:00:10]} 33. Qb3 {[%emt 0:00:06]} Kf8 {[%emt 0:03:06]} 34. Nf1 {[%emt 0:01:25]} Ke7 {[%emt 0:07:15]} 35. Qc2 {[%emt 0:04:21]} Bd7 {[%emt 0:01:33]} 36. Ne3 {[%emt 0:00:38]} e4 {[%emt 0:02:30]} 37. Qc7 {[%emt 0:01:15]} g6 {[%emt 0:01:09]} 38. Qg3 {[%emt 0:02:30]} Be8 {[%emt 0:01:31]} 39. Qb8 {[%emt 0:02:47]} Bd7 {[%emt 0:03:38]} 40. Qg8 {[%emt 0:00:00]} Qxb2 {[%emt 0:00:38]} 41. Qxg6 {[%emt 0:04:18]} Qa1+ {[%emt 0:01:06]} 42. Kh2 {[%emt 0:00:29]} Qe5+ {[%emt 0:00:13]} 43. g3 {[%emt 0:00:16]} a5 {[%emt 0:00:35]} 44. h4 {[%emt 0:01:55]} Be8 {[%emt 0:01:29]} 45. Qh7+ {[%emt 0:02:09]} Kd8 {[%emt 0:02:44]} 46. Qa7 {[%emt 0:03:45]} a4 {[%emt 0:00:39]} 47. a3 {[%emt 0:02:12]} Bd7 {[%emt 0:00:29]} 48. Qc5 {[%emt 0:01:13]} Ke8 {[%emt 0:00:23]} 49. Ng2 {[%emt 0:00:33]} b4 {[%emt 0:04:01]} 50. Qxb4 {[%emt 0:01:34]} Qxd5 {[%emt 0:00:08]} 51. Nf4 {[%emt 0:00:34]} Qf5 {[%emt 0:01:46]} 52. Kg1 {[%emt 0:02:40]} Kf7 {[%emt 0:04:47]} 53. Qb7 {[%emt 0:00:37]} Ke8 {[%emt 0:00:51]} 54. Nd5 {[%emt 0:01:05]} Qe5 {[%emt 0:02:32]} 55. h5 {[%emt 0:03:52]} Qg5 {[%emt 0:03:06]} 56. Qb8+ {[%emt 0:03:59]} Kf7 {[%emt 0:00:13]} 57. Qd6 {[%emt 0:00:18]} Qc1+ {[%emt 0:03:07]} 58. Kh2 {[%emt 0:00:05]} Qc6 {[%emt 0:00:14]} 59. Qe7+ {[%emt 0:00:17]} 1-0

[Event "EIWCC 2017"]
[Site "Riga"]
[Date "2017.04.13"]
[Round "3"]
[White "Mammadzada, Gunay"]
[Black "Movileanu, Daniela"]
[Result "1-0"]
[ECO "B90"]
[WhiteElo "2348"]
[BlackElo "2213"]
[Annotator "NA"]
[PlyCount "144"]
[EventDate "2017.??.??"]
[EventType "swiss"]
[EventCountry "LAT"]
[SourceTitle "playchess.com"]
[Source "ChessBase"]
[SourceQuality "1"]
[TimeControl "40/5400+30:1800+30"]

1. e4 {[%emt 0:00:00]} c5 {[%emt 0:00:10]} 2. Nf3 {[%emt 0:00:00]} d6 {[%emt 0:00:15]} 3. d4 {[%emt 0:00:00]} Nf6 {[%emt 0:00:22]} 4. Nc3 {[%emt 0:00:19]} cxd4 {[%emt 0:00:11]} 5. Nxd4 {[%emt 0:00:03]} a6 {[%emt 0:00:15]} 6. h3 {[%emt 0:00:27]} e6 {[%emt 0:02:45]} 7. g4 {[%emt 0:00:18]} d5 {[%emt 0:00:44]} 8. Nde2 {[%emt 0:19:41]} Nc6 {[%emt 0:15:45]} 9. exd5 {[%emt 0:11:07]} Nxd5 {[%emt 0:01:30]} 10. Nxd5 {[%emt 0:04:46]} Qxd5 {[%emt 0:01:24]} 11. Qxd5 {[%emt 0:04:17]} exd5 {[%emt 0:00:07]} 12. Nf4 {[%emt 0:05:46]} Be6 {[%emt 0:04:36]} 13. Bg2 {[%emt 0:07:40]} Rd8 {[%emt 0:06:16]} 14. O-O {[%emt 0:02:37]} Bc5 {[%emt 0:04:15]} 15. Re1 {[%emt 0:04:41]} O-O {[%emt 0:03:10]} 16. Be3 {[%emt 0:06:51]} d4 {[%emt 0:07:40]} 17. Bd2 {[%emt 0:00:26]} Rd6 {[%emt 0:08:08]} 18. a3 {[%emt 0:04:32]} Rc8 {[%emt 0:08:22]} 19. Nxe6 {[%emt 0:03:12]} Rxe6 {[%emt 0:00:15]} 20. Rxe6 {[%emt 0:05:36]} fxe6 {[%emt 0:00:07]} 21. Re1 {[%emt 0:00:04]} Kf7 {[%emt 0:01:31]} 22. Be4 {[%emt 0:00:26]} g6 {[%emt 0:01:07]} 23. Kg2 {[%emt 0:00:25]} Bd6 {[%emt 0:05:41]} 24. f4 {[%emt 0:00:42]} Ne7 {[%emt 0:02:29]} 25. Kf3 {[%emt 0:07:30]} Rc7 {[%emt 0:07:52]} 26. Ke2 {[%emt 0:02:29]} Bc5 {[%emt 0:02:11]} 27. Kd3 {[%emt 0:00:51]} Rd7 {[%emt 0:01:08]} 28. h4 {[%emt 0:01:33]} b5 {[%emt 0:05:25]} 29. Rh1 {[%emt 0:01:06]} Kg7 {[%emt 0:01:48]} 30. h5 {[%emt 0:00:39]} Ng8 {[%emt 0:02:54]} 31. hxg6 {[%emt 0:02:18]} hxg6 {[%emt 0:00:07]} 32. Re1 {[%emt 0:02:14]} Ne7 {[%emt 0:01:57]} 33. Bb4 {[%emt 0:01:10]} Bb6 {[%emt 0:01:47]} 34. Rh1 {[%emt 0:01:22]} Ng8 {[%emt 0:03:41]} 35. g5 {[%emt 0:01:51]} Bc7 {[%emt 0:01:25]} 36. Rf1 {[%emt 0:00:23]} Rf7 {[%emt 0:00:31]} 37. Bc5 {[%emt 0:00:36]} e5 {[%emt 0:00:33]} 38. Bd5 {[%emt 0:00:18]} Rxf4 {[%emt 0:00:28]} 39. Rxf4 {[%emt 0:00:02]} exf4 {[%emt 0:00:04]} 40. Bxd4+ {[%emt 0:00:00]} Kf8 {[%emt 0:00:08]} 41. Bc5+ {[%emt 0:07:16]} Ne7 {[%emt 0:05:07]} 42. Bb7 {[%emt 0:02:13]} a5 {[%emt 0:01:03]} 43. Ba6 {[%emt 0:01:57]} Kf7 {[%emt 0:04:24]} 44. Bxb5 {[%emt 0:01:47]} Nf5 {[%emt 0:02:15]} 45. Bc4+ {[%emt 0:00:40]} Ke8 {[%emt 0:00:07]} 46. b4 {[%emt 0:05:19]} axb4 {[%emt 0:01:01]} 47. axb4 {[%emt 0:04:35]} Bd8 {[%emt 0:04:44]} 48. Bb5+ {[%emt 0:00:48]} Kf7 {[%emt 0:00:06]} 49. Bd7 {[%emt 0:04:20]} Bxg5 {[%emt 0:08:25]} 50. Bxf5 {[%emt 0:01:14]} gxf5 {[%emt 0:00:15]} 51. c4 {[%emt 0:01:00]} Ke6 {[%emt 0:04:17]} 52. b5 {[%emt 0:00:45]} f3 {[%emt 0:00:57]} 53. Be3 {[%emt 0:01:47]} Bh4 {[%emt 0:02:09]} 54. c5 {[%emt 0:02:20]} Kd5 {[%emt 0:00:53]} 55. c6 {[%emt 0:01:01]} Bd8 {[%emt 0:01:50]} 56. Kd2 {[%emt 0:01:14]} Ba5+ {[%emt 0:00:38]} 57. Kd1 {[%emt 0:00:30]} f4 {[%emt 0:00:49]} 58. Bf2 {[%emt 0:00:39]} Bc7 {[%emt 0:00:34]} 59. Ke1 {[%emt 0:00:35]} Bd6 {[%emt 0:00:46]} 60. Kf1 {[%emt 0:00:10]} Bc7 {[%emt 0:00:23]} 61. Kg1 {[%emt 0:00:15]} Ba5 {[%emt 0:00:37]} 62. Kh2 {[%emt 0:00:25]} Bc7 {[%emt 0:00:29]} 63. Kh3 {[%emt 0:00:17]} Bd8 {[%emt 0:00:30]} 64. Kg4 {[%emt 0:00:16]} Bc7 {[%emt 0:00:06]} 65. Kxf3 {[%emt 0:00:08]} Bd6 {[%emt 0:00:32]} 66. Kg4 {[%emt 0:01:28]} Bc7 {[%emt 0:00:20]} 67. Kf5 {[%emt 0:00:19]} Bb8 {[%emt 0:00:27]} 68. Kf6 {[%emt 0:00:59]} Kd6 {[%emt 0:00:12]} 69. Bb6 {[%emt 0:00:29]} f3 {[%emt 0:01:06]} 70. Kf5 {[%emt 0:00:29]} Kd5 {[%emt 0:00:28]} 71. Bf2 {[%emt 0:00:14]} Bc7 {[%emt 0:00:50]} 72. Kg4 {[%emt 0:00:08]} Ke6 1-0

[Event "EIWCC 2017"]
[Site "Riga"]
[Date "2017.04.13"]
[Round "3"]
[White "Worek, Joanna"]
[Black "Pavlidou, Ekaterini"]
[Result "0-1"]
[ECO "B33"]
[WhiteElo "2330"]
[BlackElo "2180"]
[Annotator "NA"]
[PlyCount "58"]
[EventDate "2017.??.??"]
[EventType "swiss"]
[EventCountry "LAT"]
[SourceTitle "playchess.com"]
[Source "ChessBase"]
[SourceQuality "1"]
[TimeControl "40/5400+30:1800+30"]

1. e4 {[%emt 0:00:00]} c5 {[%emt 0:02:11]} 2. Nf3 {[%emt 0:00:00]} Nc6 {[%emt 0:00:37]} 3. d4 {[%emt 0:00:00]} cxd4 {[%emt 0:00:57]} 4. Nxd4 {[%emt 0:00:05]} Nf6 {[%emt 0:01:17]} 5. Nc3 {[%emt 0:00:35]} e6 {[%emt 0:00:45]} 6. Ndb5 {[%emt 0:01:28]} Bb4 {[%emt 0:04:51]} 7. a3 {[%emt 0:01:31]} Bxc3+ {[%emt 0:00:07]} 8. Nxc3 {[%emt 0:00:05]} O-O {[%emt 0:04:43]} 9. Bg5 {[%emt 0:24:46]} d5 {[%emt 0:06:44]} 10. exd5 {[%emt 0:04:13]} exd5 {[%emt 0:00:13]} 11. Bd3 {[%emt 0:00:20]} Re8+ {[%emt 0:02:19]} 12. Ne2 {[%emt 0:00:41]} h6 {[%emt 0:04:56]} 13. Bh4 {[%emt 0:06:04]} Qa5+ {[%emt 0:08:38]} 14. c3 {[%emt 0:02:45]} Ne4 {[%emt 0:04:52]} 15. O-O {[%emt 0:03:27]} Qb6 {[%emt 0:01:03]} 16. b4 {[%emt 0:08:50]} Bg4 {[%emt 0:02:08]} 17. Qc2 {[%emt 0:02:31]} Bxe2 {[%emt 0:09:33]} 18. Bxe2 {[%emt 0:07:16]} Rac8 {[%emt 0:09:04]} 19. Qb2 {[%emt 0:09:57]} Nxc3 {[%emt 0:04:24]} 20. Qxc3 {[%emt 0:04:44]} Nd4 {[%emt 0:00:25]} 21. Qh3 {[%emt 0:01:30]} Nxe2+ {[%emt 0:00:17]} 22. Kh1 {[%emt 0:00:02]} Qe6 {[%emt 0:03:06]} 23. Qb3 {[%emt 0:06:02]} d4 {[%emt 0:07:07]} 24. Qxe6 {[%emt 0:01:05]} Rxe6 {[%emt 0:00:06]} 25. f3 {[%emt 0:02:06]} d3 {[%emt 0:01:03]} 26. Rad1 {[%emt 0:00:49]} Rc3 {[%emt 0:00:38]} 27. a4 {[%emt 0:01:00]} Rd6 {[%emt 0:07:47]} 28. Bf2 {[%emt 0:04:50]} d2 {[%emt 0:03:16]} 29. Bxa7 {[%emt 0:00:31]} Rdd3 {[%emt 0:01:23]} 0-1